[Event "Titled Tuesday Blitz August 16 Early 2022"]
[White "Tanenbaum, Zachary"]
[Black "Fiorito, Joaquin"]
[WhiteFideId "2060850"]
[BlackFideId "180173"]
[WhiteElo "2175"]
[BlackElo "1758"]
[Result "1-0"]
[Round "05"]
[TimeControl "180+2"]
[Date "2022.08.18"]
[WhiteClock "0:00:00"]
[BlackClock "0:00:00"]

1. e4 {[%clk 0:00:00]}  c6 {[%clk 0:00:00]} 2. d4 {[%clk 0:00:00]}  d5 {[%clk 0:00:00]} 3. exd5 {[%clk 0:00:00]}  cxd5 {[%clk 0:00:00]} 4. Bd3 {[%clk 0:00:00]}  Nf6 {[%clk 0:00:00]} 5. c3 {[%clk 0:00:00]}  Nc6 {[%clk 0:00:00]} 6. Bf4 {[%clk 0:00:00]}  Bg4 {[%clk 0:00:00]} 7. Qb3 {[%clk 0:00:00]}  Na5 {[%clk 0:00:00]} 8. Qa4+ {[%clk 0:00:00]}  Bd7 {[%clk 0:00:00]} 9. Qc2 {[%clk 0:00:00]}  Qb6 {[%clk 0:00:00]} 10. Nf3 {[%clk 0:00:00]}  Rc8 {[%clk 0:00:00]} 11. Nbd2 {[%clk 0:00:00]}  Bb5 {[%clk 0:00:00]} 12. Rb1 {[%clk 0:00:00]}  Bxd3 {[%clk 0:00:00]} 13. Qxd3 {[%clk 0:00:00]}  e6 {[%clk 0:00:00]} 14. O-O {[%clk 0:00:00]}  Be7 {[%clk 0:00:00]} 15. Ne5 {[%clk 0:00:00]}  O-O {[%clk 0:00:00]} 16. Ndf3 {[%clk 0:00:00]}  Ne4 {[%clk 0:00:00]} 17. Nd7 {[%clk 0:00:00]}  Qc6 {[%clk 0:00:00]} 18. Nxf8 {[%clk 0:00:00]}  Rxf8 {[%clk 0:00:00]} 19. Ne5 {[%clk 0:00:00]}  Qc8 {[%clk 0:00:00]} 20. Rbc1 {[%clk 0:00:00]}  f6 {[%clk 0:00:00]} 21. Nf3 {[%clk 0:00:00]}  Nc4 {[%clk 0:00:00]} 22. b3 {[%clk 0:00:00]}  Ncd6 {[%clk 0:00:00]} 23. c4 {[%clk 0:00:00]}  Qd7 {[%clk 0:00:00]} 24. Nd2 {[%clk 0:00:00]}  g5 {[%clk 0:00:00]} 25. Bxd6 {[%clk 0:00:00]}  Nxd6 {[%clk 0:00:00]} 26. cxd5 {[%clk 0:00:00]}  exd5 {[%clk 0:00:00]} 27. Rfe1 {[%clk 0:00:00]}  f5 {[%clk 0:00:00]} 28. Nf3 {[%clk 0:00:00]}  Bf6 {[%clk 0:00:00]} 29. Ne5 {[%clk 0:00:00]}  Qg7 {[%clk 0:00:00]} 30. Qf3 {[%clk 0:00:00]}  Ne4 {[%clk 0:00:00]} 31. Qxf5 {[%clk 0:00:00]}  Kh8 {[%clk 0:00:00]} 32. Nd7 {[%clk 0:00:00]}  Rd8 {[%clk 0:00:00]} 33. Qxd5 {[%clk 0:00:00]}  Nd2 {[%clk 0:00:00]} 34. Nxf6 {[%clk 0:00:00]}  Qxf6 {[%clk 0:00:00]} 35. Qe5 {[%clk 0:00:00]}  Qxe5 {[%clk 0:00:00]} 36. dxe5 {[%clk 0:00:00]} 1-0


[Site "https://www.chess.com"]

[Event "Titled Tuesday Blitz August 16 Early 2022"]
[White "Taspinar, Yanki"]
[Black "Vidonyak, Roman"]
[WhiteFideId "34561188"]
[BlackFideId "14100622"]
[WhiteElo "1549"]
[BlackElo "2442"]
[Result "1-0"]
[Round "05"]
[TimeControl "180+2"]
[Date "2022.08.18"]
[WhiteClock "0:00:00"]
[BlackClock "0:00:00"]

1. Nf3 {[%clk 0:00:00]}  Nf6 {[%clk 0:00:00]} 2. g3 {[%clk 0:00:00]}  g6 {[%clk 0:00:00]} 3. Bg2 {[%clk 0:00:00]}  Bg7 {[%clk 0:00:00]} 4. O-O {[%clk 0:00:00]}  O-O {[%clk 0:00:00]} 5. d4 {[%clk 0:00:00]}  d5 {[%clk 0:00:00]} 6. b3 {[%clk 0:00:00]}  c5 {[%clk 0:00:00]} 7. Bb2 {[%clk 0:00:00]}  Ne4 {[%clk 0:00:00]} 8. Nbd2 {[%clk 0:00:00]}  Nc6 {[%clk 0:00:00]} 9. e3 {[%clk 0:00:00]}  Bg4 {[%clk 0:00:00]} 10. h3 {[%clk 0:00:00]}  Bxf3 {[%clk 0:00:00]} 11. Nxf3 {[%clk 0:00:00]}  Rc8 {[%clk 0:00:00]} 12. a3 {[%clk 0:00:00]}  Qb6 {[%clk 0:00:00]} 13. Ne5 {[%clk 0:00:00]}  Nxe5 {[%clk 0:00:00]} 14. dxe5 {[%clk 0:00:00]}  Rfd8 {[%clk 0:00:00]} 15. Qe2 {[%clk 0:00:00]}  Qc7 {[%clk 0:00:00]} 16. Bxe4 {[%clk 0:00:00]}  dxe4 {[%clk 0:00:00]} 17. Rad1 {[%clk 0:00:00]}  Bxe5 {[%clk 0:00:00]} 18. Bxe5 {[%clk 0:00:00]}  Qxe5 {[%clk 0:00:00]} 19. Qb5 {[%clk 0:00:00]}  b6 {[%clk 0:00:00]} 20. Qa4 {[%clk 0:00:00]}  a5 {[%clk 0:00:00]} 21. Qc4 {[%clk 0:00:00]}  h5 {[%clk 0:00:00]} 22. h4 {[%clk 0:00:00]}  Kg7 {[%clk 0:00:00]} 23. a4 {[%clk 0:00:00]}  Rd6 {[%clk 0:00:00]} 24. Rxd6 {[%clk 0:00:00]}  exd6 {[%clk 0:00:00]} 25. Rd1 {[%clk 0:00:00]}  Rd8 {[%clk 0:00:00]} 26. Qb5 {[%clk 0:00:00]}  Qc3 {[%clk 0:00:00]} 27. Qxb6 {[%clk 0:00:00]}  Qxc2 {[%clk 0:00:00]} 28. Rd5 {[%clk 0:00:00]}  Qc3 {[%clk 0:00:00]} 29. Qxd8 {[%clk 0:00:00]} 1-0


[Site "https://www.chess.com"]

[Event "Titled Tuesday Blitz August 16 Early 2022"]
[White "Tica, Sven"]
[Black "Timofeev, Artyom"]
[WhiteFideId "14526948"]
[BlackFideId "4140419"]
[WhiteElo "2350"]
[BlackElo "2578"]
[Result "0-1"]
[Round "05"]
[TimeControl "180+1"]
[Date "2022.08.16"]
[WhiteClock "0:00:13"]
[BlackClock "0:00:51"]

1. e4 {[%clk 0:03:00]}  c6 {[%clk 0:02:59]} 2. Nf3 {[%clk 0:03:01]}  d5 {[%clk 0:02:58]} 3. d3 {[%clk 0:03:02]}  dxe4 {[%clk 0:02:57]} 4. dxe4 {[%clk 0:03:03]}  Qxd1+ {[%clk 0:02:57]} 5. Kxd1 {[%clk 0:03:04]}  g6 {[%clk 0:02:57]} 6. Nfd2 {[%clk 0:02:59]}  Bg7 {[%clk 0:02:56]} 7. f3 {[%clk 0:02:56]}  f5 {[%clk 0:02:53]} 8. a4 {[%clk 0:02:46]}  Nf6 {[%clk 0:02:51]} 9. Bd3 {[%clk 0:02:43]}  O-O {[%clk 0:02:42]} 10. Nc3 {[%clk 0:02:37]}  Rd8 {[%clk 0:02:39]} 11. e5 {[%clk 0:02:33]}  Nh5 {[%clk 0:02:22]} 12. Nc4 {[%clk 0:02:32]}  Be6 {[%clk 0:02:21]} 13. Ke2 {[%clk 0:02:28]}  Nd7 {[%clk 0:02:20]} 14. f4 {[%clk 0:02:05]}  Nc5 {[%clk 0:02:20]} 15. g3 {[%clk 0:02:05]}  Nxd3 {[%clk 0:02:07]} 16. cxd3 {[%clk 0:02:06]}  Rd7 {[%clk 0:02:07]} 17. Be3 {[%clk 0:02:04]}  b6 {[%clk 0:02:05]} 18. Rhd1 {[%clk 0:01:55]}  Rad8 {[%clk 0:02:04]} 19. b3 {[%clk 0:01:52]}  g5 {[%clk 0:02:01]} 20. d4 {[%clk 0:01:41]}  gxf4 {[%clk 0:01:55]} 21. gxf4 {[%clk 0:01:42]}  Bh6 {[%clk 0:01:55]} 22. Kf3 {[%clk 0:01:40]}  Ng7 {[%clk 0:01:48]} 23. Rd2 {[%clk 0:01:08]}  Bf7 {[%clk 0:01:43]} 24. Rg1 {[%clk 0:01:09]}  Kf8 {[%clk 0:01:42]} 25. Rgd1 {[%clk 0:01:01]}  Bh5+ {[%clk 0:01:41]} 26. Kf2 {[%clk 0:00:59]}  Bxd1 {[%clk 0:01:41]} 27. Rxd1 {[%clk 0:00:59]}  Ne6 {[%clk 0:01:41]} 28. Ne2 {[%clk 0:00:59]}  c5 {[%clk 0:01:41]} 29. Rd3 {[%clk 0:00:49]}  cxd4 {[%clk 0:01:33]} 30. Bc1 {[%clk 0:00:49]}  Nc5 {[%clk 0:01:32]} 31. Rh3 {[%clk 0:00:50]}  Kg7 {[%clk 0:01:32]} 32. Ng3 {[%clk 0:00:47]}  Kg6 {[%clk 0:01:30]} 33. Nxf5 {[%clk 0:00:47]}  Kxf5 {[%clk 0:01:30]} 34. Rxh6 {[%clk 0:00:47]}  Ke4 {[%clk 0:01:23]} 35. Nd2+ {[%clk 0:00:40]}  Kd5 {[%clk 0:01:22]} 36. Ke2 {[%clk 0:00:36]}  Rg8 {[%clk 0:01:21]} 37. Kf1 {[%clk 0:00:31]}  Nd3 {[%clk 0:01:19]} 38. Ba3 {[%clk 0:00:31]}  Nxf4 {[%clk 0:01:18]} 39. e6 {[%clk 0:00:30]}  Nxe6 {[%clk 0:01:16]} 40. Rh5+ {[%clk 0:00:30]}  Rg5 {[%clk 0:01:14]} 41. Rxh7 {[%clk 0:00:29]}  Nc5 {[%clk 0:01:11]} 42. Bxc5 {[%clk 0:00:26]}  bxc5 {[%clk 0:01:09]} 43. Nf3 {[%clk 0:00:26]}  Rf5 {[%clk 0:01:08]} 44. Ke2 {[%clk 0:00:26]}  Rb7 {[%clk 0:01:07]} 45. Nd2 {[%clk 0:00:25]}  Re5+ {[%clk 0:01:07]} 46. Kd3 {[%clk 0:00:24]}  Re3+ {[%clk 0:01:05]} 47. Kc2 {[%clk 0:00:24]}  Rb8 {[%clk 0:01:00]} 48. h4 {[%clk 0:00:20]}  Rg8 {[%clk 0:00:58]} 49. Rh5+ {[%clk 0:00:14]}  e5 {[%clk 0:00:58]} 50. Nc4 {[%clk 0:00:14]}  Rg2+ {[%clk 0:00:57]} 51. Kd1 {[%clk 0:00:13]}  Rxb3 {[%clk 0:00:51]} 0-1


[Site "https://www.chess.com"]

[Event "Titled Tuesday Blitz August 16 Early 2022"]
[White "Tologon tegin, Semetei"]
[Black "Rosenberg, Evan S"]
[WhiteFideId "13800574"]
[BlackFideId "2019299"]
[WhiteElo "2174"]
[BlackElo "1999"]
[Result "1-0"]
[Round "05"]
[TimeControl "180+2"]
[Date "2022.08.18"]
[WhiteClock "0:00:00"]
[BlackClock "0:00:00"]

1. g3 {[%clk 0:00:00]}  e5 {[%clk 0:00:00]} 2. Bg2 {[%clk 0:00:00]}  d5 {[%clk 0:00:00]} 3. d3 {[%clk 0:00:00]}  Nc6 {[%clk 0:00:00]} 4. a3 {[%clk 0:00:00]}  Nf6 {[%clk 0:00:00]} 5. b4 {[%clk 0:00:00]}  Be6 {[%clk 0:00:00]} 6. Bb2 {[%clk 0:00:00]}  Bd6 {[%clk 0:00:00]} 7. Nf3 {[%clk 0:00:00]}  a6 {[%clk 0:00:00]} 8. Ng5 {[%clk 0:00:00]}  Bd7 {[%clk 0:00:00]} 9. c4 {[%clk 0:00:00]}  h6 {[%clk 0:00:00]} 10. cxd5 {[%clk 0:00:00]}  hxg5 {[%clk 0:00:00]} 11. dxc6 {[%clk 0:00:00]}  Bxc6 {[%clk 0:00:00]} 12. Bxc6+ {[%clk 0:00:00]}  bxc6 {[%clk 0:00:00]} 13. Qc1 {[%clk 0:00:00]}  Qd7 {[%clk 0:00:00]} 14. Qxg5 {[%clk 0:00:00]}  a5 {[%clk 0:00:00]} 15. bxa5 {[%clk 0:00:00]}  Rb8 {[%clk 0:00:00]} 16. Bc3 {[%clk 0:00:00]}  Qh3 {[%clk 0:00:00]} 17. a6 {[%clk 0:00:00]}  Qg2 {[%clk 0:00:00]} 18. Rf1 {[%clk 0:00:00]}  Rxh2 {[%clk 0:00:00]} 19. Nd2 {[%clk 0:00:00]}  c5 {[%clk 0:00:00]} 20. Nc4 {[%clk 0:00:00]}  Nd5 {[%clk 0:00:00]} 21. Bxe5 {[%clk 0:00:00]}  Bxe5 {[%clk 0:00:00]} 22. Qxe5+ {[%clk 0:00:00]}  Kf8 {[%clk 0:00:00]} 23. e4 {[%clk 0:00:00]}  Nf6 {[%clk 0:00:00]} 24. Qxc7 {[%clk 0:00:00]}  Re8 {[%clk 0:00:00]} 25. O-O-O {[%clk 0:00:00]}  Nxe4 {[%clk 0:00:00]} 26. dxe4 {[%clk 0:00:00]}  Qxe4 {[%clk 0:00:00]} 27. Nd6 {[%clk 0:00:00]}  Qa4 {[%clk 0:00:00]} 28. Qxc5 {[%clk 0:00:00]}  Rd8 {[%clk 0:00:00]} 1-0


[Site "https://www.chess.com"]

[Event "Titled Tuesday Blitz August 16 Early 2022"]
[White "Vlassov, Nikolai"]
[Black "Bintang, Rasyid A. Hidayat"]
[WhiteFideId "4103360"]
[BlackFideId "7105355"]
[WhiteElo "2324"]
[BlackElo "1820"]
[Result "1-0"]
[Round "05"]
[TimeControl "180+2"]
[Date "2022.08.18"]
[WhiteClock "0:00:00"]
[BlackClock "0:00:00"]

1. e4 {[%clk 0:00:00]}  e5 {[%clk 0:00:00]} 2. Bc4 {[%clk 0:00:00]}  Nc6 {[%clk 0:00:00]} 3. f4 {[%clk 0:00:00]}  Nf6 {[%clk 0:00:00]} 4. Nc3 {[%clk 0:00:00]}  Nxe4 {[%clk 0:00:00]} 5. Nf3 {[%clk 0:00:00]}  Nxc3 {[%clk 0:00:00]} 6. dxc3 {[%clk 0:00:00]}  e4 {[%clk 0:00:00]} 7. Ng5 {[%clk 0:00:00]}  Qf6 {[%clk 0:00:00]} 8. Bxf7+ {[%clk 0:00:00]}  Kd8 {[%clk 0:00:00]} 9. Bb3 {[%clk 0:00:00]}  Ke8 {[%clk 0:00:00]} 10. Nxe4 {[%clk 0:00:00]}  Qf5 {[%clk 0:00:00]} 11. O-O {[%clk 0:00:00]}  Be7 {[%clk 0:00:00]} 12. Qf3 {[%clk 0:00:00]}  h5 {[%clk 0:00:00]} 13. Bd2 {[%clk 0:00:00]}  d6 {[%clk 0:00:00]} 14. Rae1 {[%clk 0:00:00]}  Kd8 {[%clk 0:00:00]} 15. Ng3 {[%clk 0:00:00]}  Qg4 {[%clk 0:00:00]} 16. Qe3 {[%clk 0:00:00]}  h4 {[%clk 0:00:00]} 17. Ne4 {[%clk 0:00:00]}  h3 {[%clk 0:00:00]} 18. Rf2 {[%clk 0:00:00]}  Bf5 {[%clk 0:00:00]} 19. Bd5 {[%clk 0:00:00]}  Bd7 {[%clk 0:00:00]} 20. Nc5 {[%clk 0:00:00]}  dxc5 {[%clk 0:00:00]} 21. Bxc6 {[%clk 0:00:00]}  Bd6 {[%clk 0:00:00]} 22. Bxb7 {[%clk 0:00:00]}  Rb8 {[%clk 0:00:00]} 23. Bf3 {[%clk 0:00:00]}  Qg6 {[%clk 0:00:00]} 24. b3 {[%clk 0:00:00]}  Re8 {[%clk 0:00:00]} 25. Qd3 {[%clk 0:00:00]}  Qxd3 {[%clk 0:00:00]} 26. Rxe8+ {[%clk 0:00:00]}  Kxe8 {[%clk 0:00:00]} 27. cxd3 {[%clk 0:00:00]}  Bf5 {[%clk 0:00:00]} 28. Be4 {[%clk 0:00:00]}  g6 {[%clk 0:00:00]} 29. gxh3 {[%clk 0:00:00]}  Kf7 {[%clk 0:00:00]} 30. Bxf5 {[%clk 0:00:00]}  gxf5 {[%clk 0:00:00]} 31. Rg2 {[%clk 0:00:00]}  Rg8 {[%clk 0:00:00]} 32. Rxg8 {[%clk 0:00:00]}  Kxg8 {[%clk 0:00:00]} 33. Kg2 {[%clk 0:00:00]}  Kf7 {[%clk 0:00:00]} 34. h4 {[%clk 0:00:00]}  Kg6 {[%clk 0:00:00]} 35. Kg3 {[%clk 0:00:00]}  Kh5 {[%clk 0:00:00]} 36. c4 {[%clk 0:00:00]}  Be7 {[%clk 0:00:00]} 37. Be3 {[%clk 0:00:00]}  Bd6 {[%clk 0:00:00]} 38. Kh3 {[%clk 0:00:00]}  Be7 {[%clk 0:00:00]} 39. a4 {[%clk 0:00:00]}  Bd6 {[%clk 0:00:00]} 40. a5 {[%clk 0:00:00]}  a6 {[%clk 0:00:00]} 41. Kg3 {[%clk 0:00:00]}  c6 {[%clk 0:00:00]} 42. Bf2 {[%clk 0:00:00]}  Bc7 {[%clk 0:00:00]} 43. Be1 {[%clk 0:00:00]} 1-0


[Site "https://www.chess.com"]

[Event "Titled Tuesday Blitz August 16 Early 2022"]
[White "Voege, Tobias"]
[Black "Jain, Naveen"]
[WhiteFideId "1270513"]
[BlackFideId "5003970"]
[WhiteElo "2360"]
[BlackElo "2036"]
[Result "1-0"]
[Round "05"]
[TimeControl "180+2"]
[Date "2022.08.18"]
[WhiteClock "0:00:00"]
[BlackClock "0:00:00"]

1. e4 {[%clk 0:00:00]}  Nf6 {[%clk 0:00:00]} 2. e5 {[%clk 0:00:00]}  Nd5 {[%clk 0:00:00]} 3. c4 {[%clk 0:00:00]}  Nb6 {[%clk 0:00:00]} 4. d4 {[%clk 0:00:00]}  d6 {[%clk 0:00:00]} 5. exd6 {[%clk 0:00:00]}  exd6 {[%clk 0:00:00]} 6. Nc3 {[%clk 0:00:00]}  Nc6 {[%clk 0:00:00]} 7. Nf3 {[%clk 0:00:00]}  Bg4 {[%clk 0:00:00]} 8. Be3 {[%clk 0:00:00]}  Be7 {[%clk 0:00:00]} 9. Be2 {[%clk 0:00:00]}  O-O {[%clk 0:00:00]} 10. Rc1 {[%clk 0:00:00]}  Bxf3 {[%clk 0:00:00]} 11. gxf3 {[%clk 0:00:00]}  Re8 {[%clk 0:00:00]} 12. d5 {[%clk 0:00:00]}  Ne5 {[%clk 0:00:00]} 13. b3 {[%clk 0:00:00]}  Qd7 {[%clk 0:00:00]} 14. f4 {[%clk 0:00:00]}  Ng6 {[%clk 0:00:00]} 15. Bg4 {[%clk 0:00:00]}  f5 {[%clk 0:00:00]} 16. Bh3 {[%clk 0:00:00]}  Nxf4 {[%clk 0:00:00]} 17. Bxf4 {[%clk 0:00:00]}  Bg5+ {[%clk 0:00:00]} 18. Ne2 {[%clk 0:00:00]}  Bxf4 {[%clk 0:00:00]} 19. Rc3 {[%clk 0:00:00]}  Be5 {[%clk 0:00:00]} 20. Rf3 {[%clk 0:00:00]}  g6 {[%clk 0:00:00]} 21. Kf1 {[%clk 0:00:00]}  Kh8 {[%clk 0:00:00]} 22. Nd4 {[%clk 0:00:00]}  Bxd4 {[%clk 0:00:00]} 23. Qxd4+ {[%clk 0:00:00]}  Qg7 {[%clk 0:00:00]} 24. Qd2 {[%clk 0:00:00]}  Nd7 {[%clk 0:00:00]} 25. Rg1 {[%clk 0:00:00]}  Qf6 {[%clk 0:00:00]} 26. Qc3 {[%clk 0:00:00]}  Re5 {[%clk 0:00:00]} 27. Kg2 {[%clk 0:00:00]}  Rae8 {[%clk 0:00:00]} 28. Kh1 {[%clk 0:00:00]}  Re2 {[%clk 0:00:00]} 29. Qa5 {[%clk 0:00:00]}  b6 {[%clk 0:00:00]} 30. Qxa7 {[%clk 0:00:00]}  Ne5 {[%clk 0:00:00]} 31. Rfg3 {[%clk 0:00:00]}  f4 {[%clk 0:00:00]} 32. R3g2 {[%clk 0:00:00]}  Nf3 {[%clk 0:00:00]} 33. Qxc7 {[%clk 0:00:00]}  Re1 {[%clk 0:00:00]} 34. Be6 {[%clk 0:00:00]}  Rxg1+ {[%clk 0:00:00]} 35. Rxg1 {[%clk 0:00:00]} 1-0


[Site "https://www.chess.com"]

[Event "Titled Tuesday Blitz August 16 Early 2022"]
[White "Xu, Yi"]
[Black "Levitskiy, Andrey"]
[WhiteFideId "8605564"]
[BlackFideId "14132885"]
[WhiteElo "2471"]
[BlackElo "2293"]
[Result "1-0"]
[Round "05"]
[TimeControl "180+2"]
[Date "2022.08.18"]
[WhiteClock "0:00:00"]
[BlackClock "0:00:00"]

1. e4 {[%clk 0:00:00]}  e6 {[%clk 0:00:00]} 2. d4 {[%clk 0:00:00]}  d5 {[%clk 0:00:00]} 3. Nd2 {[%clk 0:00:00]}  c5 {[%clk 0:00:00]} 4. exd5 {[%clk 0:00:00]}  Qxd5 {[%clk 0:00:00]} 5. Ngf3 {[%clk 0:00:00]}  cxd4 {[%clk 0:00:00]} 6. Bc4 {[%clk 0:00:00]}  Qd6 {[%clk 0:00:00]} 7. O-O {[%clk 0:00:00]}  Nf6 {[%clk 0:00:00]} 8. Nb3 {[%clk 0:00:00]}  Nc6 {[%clk 0:00:00]} 9. Nbxd4 {[%clk 0:00:00]}  Nxd4 {[%clk 0:00:00]} 10. Nxd4 {[%clk 0:00:00]}  a6 {[%clk 0:00:00]} 11. Re1 {[%clk 0:00:00]}  Qc7 {[%clk 0:00:00]} 12. Bf1 {[%clk 0:00:00]}  Bd6 {[%clk 0:00:00]} 13. Nf5 {[%clk 0:00:00]}  Bxh2+ {[%clk 0:00:00]} 14. Kh1 {[%clk 0:00:00]}  Kf8 {[%clk 0:00:00]} 15. Qd4 {[%clk 0:00:00]}  exf5 {[%clk 0:00:00]} 16. Qxf6 {[%clk 0:00:00]}  h5 {[%clk 0:00:00]} 17. Qd4 {[%clk 0:00:00]}  Be6 {[%clk 0:00:00]} 18. g3 {[%clk 0:00:00]}  h4 {[%clk 0:00:00]} 19. Bf4 {[%clk 0:00:00]}  Qc6+ {[%clk 0:00:00]} 20. Bg2 {[%clk 0:00:00]} 1-0


[Site "https://www.chess.com"]

[Event "Titled Tuesday Blitz August 16 Early 2022"]
[White "Yeletsky, Ivan"]
[Black "Gabdrakhmanov, Azat"]
[WhiteFideId "24180327"]
[BlackFideId "34189197"]
[WhiteElo "2293"]
[BlackElo "2293"]
[Result "1-0"]
[Round "05"]
[TimeControl "180+1"]
[Date "2022.08.16"]
[WhiteClock "0:00:30"]
[BlackClock "0:00:03"]

1. Nf3 {[%clk 0:03:00]}  c5 {[%clk 0:02:49]} 2. g3 {[%clk 0:03:00]}  b6 {[%clk 0:02:49]} 3. Bg2 {[%clk 0:02:57]}  Bb7 {[%clk 0:02:49]} 4. O-O {[%clk 0:02:57]}  Nf6 {[%clk 0:02:50]} 5. c4 {[%clk 0:02:57]}  e6 {[%clk 0:02:50]} 6. Nc3 {[%clk 0:02:54]}  Be7 {[%clk 0:02:50]} 7. Re1 {[%clk 0:02:52]}  d6 {[%clk 0:02:49]} 8. e4 {[%clk 0:02:50]}  a6 {[%clk 0:02:49]} 9. d4 {[%clk 0:02:49]}  cxd4 {[%clk 0:02:49]} 10. Nxd4 {[%clk 0:02:50]}  Qc7 {[%clk 0:02:49]} 11. Be3 {[%clk 0:02:40]}  O-O {[%clk 0:02:48]} 12. Rc1 {[%clk 0:02:39]}  Nbd7 {[%clk 0:02:48]} 13. f4 {[%clk 0:02:26]}  Rfe8 {[%clk 0:02:45]} 14. Bf2 {[%clk 0:02:22]}  Bf8 {[%clk 0:02:44]} 15. g4 {[%clk 0:02:17]}  e5 {[%clk 0:02:26]} 16. Nf5 {[%clk 0:02:05]}  g6 {[%clk 0:02:21]} 17. Nd5 {[%clk 0:01:51]}  Bxd5 {[%clk 0:02:05]} 18. cxd5 {[%clk 0:01:47]}  Qd8 {[%clk 0:02:04]} 19. fxe5 {[%clk 0:01:40]}  Nxe5 {[%clk 0:01:57]} 20. Ne3 {[%clk 0:01:39]}  Rc8 {[%clk 0:01:27]} 21. Qe2 {[%clk 0:01:30]}  Qd7 {[%clk 0:01:17]} 22. h3 {[%clk 0:01:30]}  b5 {[%clk 0:01:13]} 23. b3 {[%clk 0:01:28]}  Bh6 {[%clk 0:01:06]} 24. Bh4 {[%clk 0:01:20]}  Rxc1 {[%clk 0:00:58]} 25. Rxc1 {[%clk 0:01:17]}  Qa7 {[%clk 0:00:39]} 26. Bf2 {[%clk 0:01:13]}  Qe7 {[%clk 0:00:32]} 27. Bh4 {[%clk 0:01:10]}  Qa7 {[%clk 0:00:32]} 28. g5 {[%clk 0:01:10]}  Nh5 {[%clk 0:00:31]} 29. gxh6 {[%clk 0:01:06]}  Nf4 {[%clk 0:00:32]} 30. Qd2 {[%clk 0:01:04]}  Nxh3+ {[%clk 0:00:19]} 31. Kh1 {[%clk 0:01:04]}  Qd7 {[%clk 0:00:17]} 32. Bf6 {[%clk 0:00:50]}  Nf4 {[%clk 0:00:15]} 33. Rf1 {[%clk 0:00:40]}  Nh5 {[%clk 0:00:13]} 34. Bh4 {[%clk 0:00:37]}  Rc8 {[%clk 0:00:08]} 35. Kh2 {[%clk 0:00:34]}  b4 {[%clk 0:00:07]} 36. Bh3 {[%clk 0:00:34]}  f5 {[%clk 0:00:07]} 37. exf5 {[%clk 0:00:34]}  g5 {[%clk 0:00:06]} 38. f6 {[%clk 0:00:33]}  g4 {[%clk 0:00:03]} 39. f7+ {[%clk 0:00:32]}  Kf8 {[%clk 0:00:04]} 40. Qg2 {[%clk 0:00:26]}  Rc3 {[%clk 0:00:02]} 41. Nxg4 {[%clk 0:00:26]}  Nf3+ {[%clk 0:00:01]} 42. Rxf3 {[%clk 0:00:26]}  Rxf3 {[%clk 0:00:02]} 43. Qxf3 {[%clk 0:00:26]}  Qe7 {[%clk 0:00:03]} 44. Ne3 {[%clk 0:00:27]}  Qe5+ {[%clk 0:00:03]} 45. Bg3 {[%clk 0:00:26]}  Nxg3 {[%clk 0:00:03]} 46. Qxg3 {[%clk 0:00:27]}  Qb2+ {[%clk 0:00:03]} 47. Bg2 {[%clk 0:00:28]}  Kxf7 {[%clk 0:00:03]} 48. Qxd6 {[%clk 0:00:27]}  Qd2 {[%clk 0:00:03]} 49. Qe6+ {[%clk 0:00:28]}  Kf8 {[%clk 0:00:03]} 50. Qf6+ {[%clk 0:00:28]}  Ke8 {[%clk 0:00:03]} 51. Qe5+ {[%clk 0:00:29]}  Kd7 {[%clk 0:00:03]} 52. d6 {[%clk 0:00:30]}  Qf2 {[%clk 0:00:03]} 53. Qe7+ {[%clk 0:00:29]}  Kc8 {[%clk 0:00:03]} 54. Qc7# {[%clk 0:00:30]} 1-0


[Site "https://www.chess.com"]

[Event "Titled Tuesday Blitz August 16 Early 2022"]
[White "Yuan, Qingyu"]
[Black "Ezat, Mohamed"]
[WhiteFideId "8609772"]
[BlackFideId "10600906"]
[WhiteElo "2359"]
[BlackElo "2386"]
[Result "1-0"]
[Round "05"]
[TimeControl "180+1"]
[Date "2022.08.16"]
[WhiteClock "0:00:46"]
[BlackClock "0:00:27"]

1. e4 {[%clk 0:03:00]}  c6 {[%clk 0:02:55]} 2. Nf3 {[%clk 0:03:00]}  d5 {[%clk 0:02:55]} 3. Nc3 {[%clk 0:03:01]}  Bg4 {[%clk 0:02:55]} 4. h3 {[%clk 0:03:01]}  Bh5 {[%clk 0:02:56]} 5. exd5 {[%clk 0:03:00]}  cxd5 {[%clk 0:02:56]} 6. g4 {[%clk 0:03:01]}  Bg6 {[%clk 0:02:55]} 7. Ne5 {[%clk 0:02:58]}  Nc6 {[%clk 0:02:55]} 8. d4 {[%clk 0:02:58]}  e6 {[%clk 0:02:55]} 9. h4 {[%clk 0:02:55]}  f6 {[%clk 0:02:54]} 10. h5 {[%clk 0:02:30]}  Bf7 {[%clk 0:02:41]} 11. Nxf7 {[%clk 0:02:18]}  Kxf7 {[%clk 0:02:41]} 12. Be3 {[%clk 0:02:02]}  Bb4 {[%clk 0:02:40]} 13. Bg2 {[%clk 0:01:52]}  Qa5 {[%clk 0:02:28]} 14. Qd3 {[%clk 0:01:45]}  Nge7 {[%clk 0:02:09]} 15. O-O {[%clk 0:01:44]}  Bxc3 {[%clk 0:01:58]} 16. bxc3 {[%clk 0:01:44]}  Rac8 {[%clk 0:01:57]} 17. Rfb1 {[%clk 0:01:37]}  Qc7 {[%clk 0:01:50]} 18. c4 {[%clk 0:01:34]}  b6 {[%clk 0:01:47]} 19. Rb5 {[%clk 0:01:12]}  dxc4 {[%clk 0:01:36]} 20. Qxc4 {[%clk 0:01:12]}  Na5 {[%clk 0:01:36]} 21. Qe2 {[%clk 0:01:00]}  Qxc2 {[%clk 0:01:29]} 22. Qe1 {[%clk 0:00:55]}  Nd5 {[%clk 0:01:19]} 23. Rxd5 {[%clk 0:00:51]}  exd5 {[%clk 0:01:20]} 24. Bxd5+ {[%clk 0:00:52]}  Kf8 {[%clk 0:01:20]} 25. Bf4 {[%clk 0:00:53]}  g5 {[%clk 0:00:32]} 26. Bd6+ {[%clk 0:00:49]}  Kg7 {[%clk 0:00:27]} 27. Qe7+ {[%clk 0:00:50]}  Kh6 {[%clk 0:00:28]} 28. Qxf6+ {[%clk 0:00:50]}  Qg6 {[%clk 0:00:26]} 29. hxg6 {[%clk 0:00:50]}  hxg6 {[%clk 0:00:27]} 30. Kg2 {[%clk 0:00:46]} 1-0


[Site "https://www.chess.com"]